bitfinex/quotes_SOLUSD_20260102
["timestamp","ask_amount","ask_price","bid_price","bid_amount"]
[1767347503101,14.08,129.47,129.44,8.61967945]
[1767347503403,0.65505534,129.48,129.45,8.61967945]
[1767347504581,0.65505534,129.48,129.43,7.72618403]
[1767347504900,14.08,129.49,129.44,0.70150892]
[1767347505096,14.08,129.49,129.46,8.61967945]
[1767347505602,14.08,129.49,129.44,0.70150892]
[1767347505802,22.4578281,129.49,129.45,8.61967945]
[1767347506006,22.4578281,129.49,129.44,0.70150892]
[1767347506187,22.4578281,129.49,129.45,8.61967945]
[1767347506700,8.61967945,129.48,129.44,8.61967945]
[1767347507005,31.18706166,129.49,129.44,8.61967945]
[1767347507186,8.61967945,129.48,129.44,8.61967945]
[1767347507382,0.65505534,129.47,129.44,8.61967945]
[1767347507779,14.08,129.49,129.46,8.61967945]
[1767347507985,14.84460945,129.49,129.46,8.61967945]
[1767347508401,9.14228172,129.49,129.45,8.61967945]
[1767347508704,17.76196117,129.49,129.45,8.61967945]
[1767347509207,9.14228172,129.49,129.45,8.61967945]
[1767347509602,1.41966479,129.49,129.46,8.61967945]
[1767347510305,9.14241092,129.49,129.46,8.61967945]
[1767347510695,0.65505534,129.48,129.43,7.72588305]
[1767347511007,0.76460945,129.47,129.45,8.61967945]
[1767347511219,1.41966479,129.48,129.46,8.61967945]
[1767347512188,0.65505534,129.48,129.46,8.61967945]
[1767347512409,0.76460945,129.49,129.46,8.61967945]
[1767347512606,0.76460945,129.49,129.47,8.61967945]
[1767347512805,0.76460945,129.49,129.45,0.70150892]
[1767347513113,1.41966479,129.49,129.46,8.61967945]
[1767347513407,0.76460945,129.49,129.46,8.61967945]
[1767347513615,0.76460945,129.49,129.47,8.61967945]
[1767347513912,0.76460945,129.49,129.46,8.61967945]
[1767347515091,0.76460945,129.49,129.45,8.61967945]
[1767347515092,9.14252554,129.49,129.45,8.61967945]
[1767347515294,8.4874702,129.49,129.41,8.42854111]
[1767347515491,0.65505534,129.46,129.42,8.61967945]
[1767347515694,0.65505534,129.45,129.39,0.70150892]
[1767347515906,0.65505534,129.45,129.39,8.42981603]
[1767347516102,0.71016328,129.44,129.4,8.61967945]
[1767347516303,8.61967945,129.43,129.38,0.2]
[1767347516615,0.71016328,129.42,129.39,8.61967945]
[1767347516805,14.1,129.43,129.4,8.61967945]
[1767347517008,14.1,129.43,129.41,8.61967945]
[1767347517389,14.1,129.43,129.4,8.61967945]
[1767347517592,21.82618952,129.43,129.4,8.61967945]
[1767347518201,14.1,129.43,129.4,8.61967945]
[1767347518806,14.1,129.43,129.39,0.67256335]
[1767347519008,14.1,129.43,129.4,8.61967945]
[1767347519320,22.53641962,129.43,129.39,8.61967945]
[1767347520390,14.81016328,129.43,129.39,8.61967945]
[1767347520621,0.76460945,129.48,129.42,8.61967945]
[1767347520622,14.81016328,129.46,129.42,8.61967945]
[1767347520803,0.76460945,129.45,129.41,0.67256335]
[1767347521005,0.76460945,129.45,129.43,9.2922428]
[1767347521310,8.48920314,129.46,129.43,8.61967945]
[1767347521516,9.19936642,129.46,129.41,0.67256335]
[1767347521823,9.32984273,129.44,129.39,8.61967945]
[1767347522039,9.32984273,129.44,129.38,9.4922428]
[1767347522040,9.32984273,129.43,129.38,9.4922428]
[1767347522323,0.71016328,129.43,129.39,8.61967945]
[1767347522623,23.42984273,129.42,129.38,0.87256335]
[1767347522822,9.32984273,129.41,129.38,0.2]
[1767347523019,14.1,129.42,129.36,9.4922428]
[1767347523020,9.32984273,129.4,129.36,0.2]
[1767347523222,14.1,129.39,129.37,0.67256335]
[1767347523424,0.71016328,129.43,129.38,8.61967945]
[1767347523425,14.1,129.4,129.38,8.61967945]
[1767347523608,14.1,129.41,129.38,8.61967945]
[1767347524328,14.1,129.41,129.37,9.2922428]
[1767347524499,14.1,129.41,129.38,5.31606902]
[1767347524706,20.0807301,129.43,129.4,5.31606902]
[1767347524707,14.86460945,129.43,129.4,5.31606902]
[1767347525203,14.1,129.42,129.41,5.31606902]
[1767347525397,0.76460945,129.43,129.41,5.31606902]
[1767347525598,14.1,129.43,129.4,0.67256335]
[1767347525816,14.1,129.43,129.41,5.31606902]
[1767347526012,21.82622922,129.43,129.4,5.31606902]
[1767347526323,21.82622922,129.43,129.39,5.31606902]
[1767347526524,21.82622922,129.43,129.36,0.2]
[1767347526525,27.14229824,129.43,129.36,0.2]
[1767347526712,0.71016328,129.41,129.36,0.2]
[1767347526908,5.75157672,129.42,129.36,0.2]
[1767347526909,20.1262323,129.4,129.36,0.2]
[1767347527118,0.71016328,129.4,129.36,5.51606902]
[1767347527420,14.1,129.39,129.36,5.51606902]
[1767347527631,14.1,129.39,129.37,5.31606902]
[1767347527807,13.375,129.39,129.38,5.31606902]
[1767347528002,12.65,129.39,129.38,5.31606902]
[1767347528221,14.1,129.41,129.38,5.31606902]
[1767347528422,14.81016328,129.41,129.37,5.31606902]
[1767347528629,14.81016328,129.41,129.36,0.2]
[1767347528630,0.71016328,129.4,129.36,5.51606902]
[1767347528808,14.81016328,129.39,129.36,0.2]
[1767347529202,14.1,129.38,129.36,0.2]
[1767347529505,22.53961863,129.38,129.36,0.2]
[1767347529705,0.71016328,129.37,129.35,0.2]
[1767347530219,14.81016328,129.37,129.35,0.2]
[1767347530724,14.1,129.37,129.34,0.2]
[1767347530922,0.71016328,129.36,129.34,0.2]
[1767347531418,14.1,129.35,129.34,0.2]
[1767347531611,14.81016328,129.35,129.34,0.2]
[1767347532512,0.71016328,129.34,129.28,0.67256335]
[1767347532713,5.31606902,129.34,129.28,8.40739476]
[1767347533026,0.71016328,129.32,129.28,5.31606902]
[1767347533207,14.81016328,129.32,129.29,5.31606902]
[1767347533402,14.81016328,129.32,129.28,5.31606902]
[1767347533629,14.81016328,129.32,129.24,34.41606902]
[1767347533630,0.71016328,129.3,129.24,0.67256335]
[1767347533927,0.71016328,129.29,129.26,5.31606902]
[1767347534130,14.81016328,129.29,129.26,5.31606902]
[1767347534509,14.81016328,129.29,129.24,0.67256335]
[1767347534722,20.1262323,129.29,129.24,5.31606902]
[1767347534922,0.71016328,129.27,129.22,7.73833381]
[1767347535129,0.71016328,129.27,129.24,5.31606902]
[1767347535328,0.71016328,129.27,129.23,7.73769494]
[1767347535329,0.71016328,129.27,129.23,5.31606902]
[1767347535626,0.71016328,129.3,129.26,5.31606902]
[1767347535837,14.1,129.29,129.26,5.31606902]
[1767347536132,0.71016328,129.3,129.27,5.31606902]
[1767347536336,14.1,129.29,129.27,5.31606902]
[1767347536633,14.1,129.3,129.28,5.31606902]
[1767347536834,14.1,129.3,129.29,5.31606902]
[1767347537008,14.1,129.3,129.28,5.31606902]
[1767347537211,14.1,129.3,129.27,5.31606902]
[1767347537410,14.1,129.3,129.25,0.67256335]
[1767347537626,14.1,129.3,129.26,5.31606902]
[1767347537627,0.71016328,129.29,129.26,5.31606902]
[1767347538237,0.71016328,129.29,129.27,5.31606902]
[1767347538436,14.1,129.3,129.28,5.31606902]
[1767347538644,0.71016328,129.29,129.26,5.31606902]
[1767347539338,0.71016328,129.29,129.25,5.31606902]
[1767347539530,0.71016328,129.27,129.22,7.73826745]
[1767347539727,0.71016328,129.26,129.22,5.31606902]
[1767347539924,0.71016328,129.26,129.23,5.31606902]
[1767347541332,27.15215782,129.27,129.23,5.31606902]
[1767347541333,0.71016328,129.27,129.23,5.31606902]
[1767347541641,14.81016328,129.27,129.24,5.31606902]
[1767347542924,0.71016328,129.3,129.24,0.67256335]
[1767347543131,0.71016328,129.3,129.26,5.31606902]
[1767347543132,0.76460945,129.29,129.26,5.31606902]
[1767347543320,1.47477273,129.29,129.26,5.31606902]
[1767347543769,0.71016328,129.28,129.26,5.31606902]
[1767347543957,0.76460945,129.29,129.26,5.31606902]
[1767347544144,1.47477273,129.29,129.26,5.31606902]
[1767347544355,9.2093499,129.29,129.25,5.31606902]
[1767347544532,1.47477273,129.29,129.25,5.31606902]
[1767347544720,0.71016328,129.33,129.25,0.67256335]
[1767347544926,0.71016328,129.32,129.29,5.31606902]
[1767347545120,0.71016328,129.32,129.25,8.4094005]
[1767347545334,0.71016328,129.31,129.26,7.73634378]
[1767347545550,0.71016328,129.31,129.29,5.31606902]
[1767347545748,5.70171713,129.3,129.27,7.73549614]
[1767347545940,5.70176362,129.29,129.28,5.31606902]
[1767347546445,5.70176362,129.29,129.25,8.40935029]
[1767347546646,5.70176362,129.28,129.26,5.31606902]
[1767347546946,5.70176362,129.27,129.26,5.31606902]
[1767347547145,5.70176362,129.27,129.21,33.46766793]
[1767347547146,5.31606902,129.26,129.21,5.31606902]
[1767347547368,0.66783972,129.22,129.19,5.31606902]
[1767347547578,5.70176362,129.21,129.19,7.74049294]
[1767347547851,0.66783972,129.24,129.2,5.31606902]
[1767347548147,5.70101663,129.23,129.18,7.74088666]
[1767347548352,5.70101663,129.22,129.2,5.31606902]
[1767347548537,5.70101663,129.21,129.2,5.31606902]
[1767347549352,6.36885635,129.21,129.18,5.31606902]
[1767347549527,5.70101663,129.2,129.18,5.31606902]
[1767347549736,5.70101663,129.2,129.17,7.74160725]
[1767347549737,5.70101663,129.19,129.16,7.74217791]
[1767347549934,5.70101663,129.18,129.16,5.31606902]
[1767347550150,0.66783972,129.21,129.16,5.31606902]
[1767347550341,0.66783972,129.21,129.15,41.34743848]
[1767347550542,0.66783972,129.21,129.17,5.31606902]
[1767347550744,0.66783972,129.23,129.19,5.31606902]
[1767347551056,0.66783972,129.23,129.17,0.12743665]
[1767347551353,14.12,129.24,129.19,5.31606902]
[1767347551559,5.98390874,129.26,129.2,5.31606902]
[1767347551758,5.98390874,129.26,129.19,0.12743665]
[1767347551941,13.72027014,129.26,129.2,13.18316942]
[1767347552129,0.66783972,129.25,129.2,13.05573277]
[1767347553644,13.72100101,129.25,129.19,14.12]
[1767347553956,0.66783972,129.24,129.19,27.17637577]
[1767347555453,13.72152016,129.24,129.19,21.86030675]
[1767347555642,0.66783972,129.23,129.19,21.86030675]
[1767347555841,0.66783972,129.23,129.19,14.12]
[1767347556034,0.66783972,129.23,129.18,13.05693583]
[1767347556442,0.66783972,129.23,129.19,7.74042229]
[1767347557937,0.66783972,129.23,129.18,13.05704207]
[1767347558344,0.66783972,129.25,129.19,5.44350567]
[1767347558542,5.98390874,129.25,129.19,5.44350567]
[1767347558774,0.66783972,129.25,129.21,5.31606902]
[1767347559339,14.78783972,129.27,129.22,5.31606902]
[1767347559546,0.66783972,129.27,129.23,13.05421031]
[1767347559753,7.73421698,129.3,129.25,5.31606902]
[1767347559754,0.66783972,129.3,129.25,5.31606902]
[1767347560152,0.66783972,129.3,129.23,7.86557794]
[1767347560153,0.66783972,129.32,129.27,5.31606902]
[1767347560355,8.40061187,129.32,129.27,5.31606902]
[1767347560570,7.73277215,129.32,129.27,5.31606902]
[1767347560878,7.73277215,129.32,129.27,1.44302796]
[1767347560879,0.66783972,129.31,129.27,1.44302796]
[1767347561763,0.66783972,129.31,129.18,38.83032958]
[1767347561764,0.66783972,129.27,129.18,38.83032958]
[1767347562069,5.71032582,129.26,129.22,5.31606902]
[1767347562370,0.66783972,129.27,129.22,5.31606902]
[1767347562371,5.71032582,129.25,129.22,5.31606902]
[1767347562555,5.71032582,129.24,129.22,5.31606902]
[1767347562758,0.66783972,129.27,129.22,5.31606902]
[1767347562954,5.71328146,129.26,129.22,5.31606902]
[1767347563155,5.71328146,129.25,129.22,5.31606902]
[1767347563356,5.71328146,129.24,129.22,5.31606902]
[1767347563566,0.66783972,129.27,129.22,5.31606902]
[1767347563868,5.71616116,129.26,129.22,5.31606902]
[1767347564046,5.71616116,129.25,129.23,5.31606902]
[1767347564246,5.71616116,129.24,129.23,5.31606902]
[1767347564446,19.43606902,129.29,129.23,5.44350567]
[1767347564447,8.40263341,129.29,129.23,5.44350567]
[1767347564672,8.40263341,129.29,129.24,31.11606902]
[1767347564860,0.66783972,129.28,129.24,31.11606902]
[1767347565368,0.66783972,129.28,129.24,38.85356139]
[1767347565773,0.66783972,129.28,129.24,13.05356139]
[1767347565969,0.66783972,129.28,129.25,5.31606902]
[1767347567165,0.66783972,129.28,129.24,13.05356139]
[1767347567372,8.40311276,129.28,129.24,5.31606902]
[1767347567551,0.66783972,129.28,129.24,5.31606902]
[1767347567747,8.40301654,129.28,129.24,5.31606902]
[1767347568458,8.40301654,129.28,129.23,27.17379036]
[1767347568770,7.73517682,129.28,129.23,27.17379036]
[1767347568995,0.66783972,129.27,129.23,27.17379036]
[1767347569270,0.66783972,129.26,129.21,19.43606902]
[1767347569458,0.66783972,129.26,129.2,7.86693933]
[1767347569459,0.66783972,129.25,129.2,27.1755717]
[1767347569772,0.66783972,129.25,129.22,15.0]
[1767347571072,8.40367173,129.27,129.22,28.05476534]
[1767347571283,0.66783972,129.26,129.22,28.05476534]
[1767347572277,8.40328964,129.28,129.24,5.31606902]
[1767347572460,7.73544992,129.28,129.24,5.31606902]
[1767347572773,0.66783972,129.27,129.24,5.31606902]
[1767347572978,7.73475725,129.29,129.24,5.31606902]
[1767347573169,0.66783972,129.29,129.24,5.31606902]
[1767347573580,0.66783972,129.28,129.24,5.31606902]
[1767347573753,0.66783972,129.28,129.25,5.31606902]
[1767347574380,0.66783972,129.28,129.26,5.31606902]
[1767347574592,24.64753179,129.33,129.27,5.31606902]
[1767347574777,0.66783972,129.32,129.28,5.31606902]
[1767347575780,0.66783972,129.32,129.28,1.44316821]
[1767347576475,5.76778536,129.31,129.28,1.44316821]
[1767347576677,5.76778536,129.3,129.28,1.44316821]
[1767347576887,5.76778536,129.29,129.28,9.17795142]
[1767347577053,0.66783972,129.32,129.28,9.17795142]
[1767347577253,7.73180541,129.34,129.28,9.17795142]
[1767347577254,0.68420066,129.34,129.3,5.31606902]
[1767347577872,0.68420066,129.34,129.31,5.31606902]
[1767347579197,0.68420066,129.33,129.29,7.73429148]
[1767347579498,0.68420066,129.33,129.29,13.0503605]
[1767347579774,0.68420066,129.33,129.29,38.8503605]
[1767347580359,0.68420066,129.33,129.29,33.53429148]
[1767347580562,0.68420066,129.33,129.29,38.8503605]
[1767347580760,0.68420066,129.33,129.3,5.31606902]
[1767347580964,0.68420066,129.35,129.29,33.53429148]
[1767347581171,0.68420066,129.35,129.32,5.31606902]
[1767347581366,6.00026968,129.35,129.3,14.12]
[1767347581672,0.68420066,129.32,129.29,61.2]
[1767347582892,0.68420066,129.32,129.29,74.25061625]
[1767347583677,0.68420066,129.32,129.29,74.25056484]
[1767347584696,0.68420066,129.32,129.29,69.84906901]
[1767347585664,7.73278272,129.32,129.29,61.2]
[1767347585871,0.68420066,129.31,129.29,61.2]
[1767347586100,0.68420066,129.31,129.28,7.73514305]
[1767347586265,21.85107731,129.35,129.29,16.3834745]
[1767347586582,0.68420066,129.35,129.31,8.64906901]
[1767347587671,7.73102756,129.35,129.31,8.64906901]
[1767347587868,0.68420066,129.34,129.3,8.64906901]
[1767347588990,0.68420066,129.34,129.29,8.64906901]
[1767347589693,0.68420066,129.34,129.3,15.0]
[1767347590690,8.41577454,129.34,129.3,15.0]
[1767347591499,16.38064289,129.34,129.3,15.0]
[1767347591678,0.68420066,129.33,129.3,15.0]
[1767347592194,0.68420066,129.33,129.3,23.64906901]
[1767347592491,0.68420066,129.33,129.3,15.0]
[1767347593080,0.68420066,129.33,129.3,31.38300384]
[1767347593995,0.68420066,129.33,129.3,15.0]
[1767347595270,0.68420066,129.33,129.3,76.2]
[1767347595893,0.68420066,129.33,129.3,84.84906901]
[1767347596094,0.68420066,129.33,129.3,92.58291718]
[1767347596498,0.68420066,129.33,129.3,84.84906901]
[1767347597389,0.68420066,129.33,129.3,76.2]
[1767347597694,0.68420066,129.33,129.3,84.84906901]
[1767347597994,0.68420066,129.33,129.3,76.2]
[1767347598189,0.68420066,129.32,129.3,76.2]
[1767347601274,9.33326967,129.32,129.3,12.68420066]
[1767347601488,9.23326967,129.31,129.27,0.70767817]
[1767347602379,0.58420066,129.31,129.27,0.70767817]
[1767347602580,0.58420066,129.31,129.27,9.35674718]
[1767347603096,7.73285103,129.32,129.28,0.70767817]
[1767347603877,8.31705169,129.32,129.28,0.70767817]
[1767347604996,16.9661207,129.32,129.28,0.70767817]
[1767347605196,8.31705169,129.32,129.28,0.70767817]
[1767347605397,16.9661207,129.32,129.28,0.70767817]
[1767347606000,9.23326967,129.32,129.28,0.70767817]
[1767347606203,0.58420066,129.32,129.28,9.35674718]
[1767347606586,0.58420066,129.32,129.28,3.81304902]
[1767347606775,24.93782645,129.33,129.28,3.81304902]
[1767347606981,0.58420066,129.35,129.31,0.66652987]
[1767347607181,5.77021756,129.34,129.31,61.86652987]
[1767347607496,3.68957151,129.35,129.31,61.86652987]
[1767347607696,5.77094577,129.34,129.31,61.86652987]
[1767347608027,0.58420066,129.35,129.31,64.97190072]
[1767347608322,5.77086982,129.34,129.31,64.97190072]
[1767347608482,0.58420066,129.35,129.31,70.51386461]
[1767347608682,5.77169053,129.34,129.31,70.51386461]
[1767347608877,0.58420066,129.35,129.31,70.51386461]
[1767347609092,5.77165255,129.34,129.31,61.86652987]
[1767347609384,16.96252437,129.35,129.31,61.86652987]
[1767347609600,5.7726379,129.34,129.31,61.86652987]
[1767347609801,16.96252437,129.35,129.31,61.86652987]
[1767347610096,5.7726379,129.34,129.31,61.86652987]
[1767347610289,16.96252437,129.35,129.31,61.86652987]
[1767347610490,5.7732694,129.34,129.31,61.86652987]
[1767347610790,16.96252437,129.35,129.31,61.86652987]
[1767347610990,5.77327092,129.34,129.31,61.86652987]
[1767347611191,16.96252437,129.35,129.31,61.86652987]
[1767347611388,5.77361712,129.34,129.31,69.59977759]
[1767347611708,16.96255361,129.35,129.31,61.86652987]
[1767347611920,5.7735723,129.34,129.31,61.86652987]
[1767347612086,16.96255361,129.35,129.31,61.86652987]
[1767347612414,5.77357382,129.34,129.31,61.86652987]
[1767347612579,16.96255361,129.35,129.31,61.86652987]
[1767347612779,5.77412668,129.34,129.31,61.86652987]
[1767347612997,16.96255361,129.35,129.31,61.86652987]
[1767347613188,5.77412516,129.34,129.31,61.86652987]
[1767347613392,16.96255361,129.35,129.31,61.86652987]
[1767347613590,5.77494859,129.34,129.31,61.86652987]
[1767347613807,0.58420066,129.34,129.31,61.2]
[1767347614620,16.96252364,129.35,129.31,70.51386461]
[1767347614797,5.77628056,129.34,129.31,70.51386461]
[1767347615115,8.3151889,129.35,129.31,70.51386461]
[1767347615318,5.77856007,129.34,129.31,61.86652987]
[1767347615507,16.96252364,129.35,129.31,70.51386461]
[1767347615705,5.77872456,129.34,129.31,70.51386461]
[1767347615901,16.96252364,129.35,129.31,70.51386461]
[1767347616112,5.77872456,129.34,129.31,70.51386461]
[1767347616407,0.58420066,129.35,129.31,70.51386461]
[1767347616603,5.78159733,129.34,129.31,70.51386461]
[1767347616806,0.58420066,129.35,129.31,70.51386461]
[1767347617120,5.78159885,129.34,129.31,70.51386461]
[1767347617325,5.78159885,129.33,129.31,70.51386461]
[1767347617505,16.96260398,129.35,129.31,70.51386461]
[1767347617506,9.2315354,129.35,129.31,70.51386461]
[1767347617708,5.7850704,129.34,129.31,70.51386461]
[1767347618013,5.7850704,129.33,129.31,70.51386461]
[1767347618213,16.96250891,129.35,129.31,70.51386461]
[1767347618410,5.78776172,129.34,129.31,70.51386461]
[1767347618600,5.78776172,129.33,129.31,70.51386461]
[1767347618917,16.96250891,129.35,129.31,70.51386461]
[1767347619116,5.78787166,129.34,129.31,70.51386461]
[1767347619332,5.78787166,129.33,129.31,70.51386461]
[1767347619531,16.96250891,129.35,129.31,70.51386461]
[1767347619706,5.79141323,129.34,129.31,70.51386461]
[1767347619903,5.79141323,129.33,129.31,70.51386461]
[1767347620119,16.96250891,129.35,129.31,70.51386461]
[1767347620430,5.79232221,129.34,129.31,70.51386461]
[1767347620606,5.79232221,129.33,129.32,8.64733474]
[1767347621701,5.79232221,129.34,129.31,61.86652987]
[1767347621898,5.79232221,129.33,129.32,8.64733474]
[1767347622315,0.58420066,129.35,129.32,8.64733474]
[1767347622316,5.79232221,129.34,129.32,9.31386461]
[1767347622509,5.79232221,129.33,129.32,0.66652987]
[1767347622706,5.79232221,129.33,129.31,69.84733474]
[1767347622910,16.37839027,129.35,129.31,61.2]
[1767347622911,9.2315354,129.34,129.31,61.2]
[1767347623098,5.79343755,129.33,129.31,61.2]
[1767347623412,9.2315354,129.34,129.31,61.2]
[1767347623617,5.79341228,129.33,129.31,61.2]
[1767347623806,9.2315354,129.34,129.31,61.2]
[1767347624124,5.79341381,129.33,129.31,61.2]
[1767347624317,9.2315354,129.34,129.31,61.2]
[1767347624617,5.7934003,129.33,129.31,61.2]
[1767347624826,9.2315354,129.34,129.31,61.2]
[1767347625005,5.79340182,129.33,129.31,61.2]
[1767347625331,9.2315354,129.34,129.31,61.2]
[1767347625542,5.79351158,129.33,129.31,61.2]
[1767347625704,9.2315354,129.34,129.31,61.2]
[1767347626037,5.79351506,129.33,129.31,61.2]
[1767347626200,5.79351506,129.32,129.31,61.2]
[1767347626405,5.79351506,129.32,129.3,61.86652987]
[1767347626607,16.96316874,129.34,129.3,61.86652987]
[1767347626818,5.79409632,129.33,129.3,61.86652987]
[1767347627025,5.79409632,129.32,129.3,61.86652987]
[1767347627202,16.96316874,129.34,129.3,61.86652987]
[1767347627419,5.79409327,129.33,129.3,61.86652987]
[1767347627615,5.79409327,129.32,129.3,61.86652987]
[1767347627919,31.06316874,129.34,129.3,70.51386461]
[1767347628106,5.79408597,129.33,129.3,70.51386461]
[1767347628426,5.79408597,129.32,129.31,0.66652987]
[1767347628614,0.58420066,129.35,129.31,9.31386461]
[1767347628819,5.79372052,129.34,129.32,8.64733474]
[1767347629127,0.58420066,129.35,129.31,70.51386461]
[1767347629128,5.79372052,129.33,129.31,70.51386461]
[1767347629426,0.58420066,129.35,129.31,70.51386461]
[1767347629427,8.31518429,129.35,129.31,61.86652987]
[1767347629597,5.79369762,129.34,129.31,70.51386461]
[1767347629801,5.79369762,129.33,129.31,61.86652987]
[1767347630006,16.96251903,129.35,129.31,70.51386461]
[1767347630217,5.79370066,129.34,129.31,70.51386461]
[1767347630420,4.34370066,129.33,129.31,69.84733474]
[1767347630605,8.42848307,129.38,129.33,0.66652987]
[1767347630804,8.42848307,129.38,129.35,3.10371186]
[1767347630805,0.69903411,129.38,129.35,3.10371186]
[1767347631415,0.69903411,129.38,129.31,102.38652699]
[1767347631727,8.42827628,129.38,129.34,3.10371186]
[1767347632226,7.72931807,129.38,129.34,3.10371186]
[1767347632429,0.69903411,129.37,129.34,3.10371186]
[1767347632612,0.69903411,129.39,129.35,3.10371186]
[1767347633719,0.69903411,129.39,129.34,68.93154425]
[1767347634033,0.69903411,129.39,129.35,3.10371186]
[1767347634422,0.69903411,129.39,129.36,3.10371186]
[1767347634624,0.69903411,129.38,129.35,3.10371186]
[1767347635630,10.8329817,129.38,129.34,61.2]
[1767347635811,0.69903411,129.37,129.34,61.2]
[1767347636212,0.69903411,129.37,129.34,64.30371186]
[1767347636427,0.69903411,129.37,129.34,3.10371186]
[1767347636933,0.69903411,129.37,129.33,69.13126287]
[1767347637124,0.69903411,129.37,129.34,3.10371186]
[1767347637434,7.72928559,129.38,129.33,61.2]
[1767347637735,0.6774524,129.35,129.33,61.2]
[1767347637927,0.6774524,129.35,129.32,3.10371186]
[1767347638732,0.6774524,129.35,129.33,3.10371186]
[1767347639514,0.6774524,129.35,129.32,7.73267685]
[1767347639735,7.73004273,129.37,129.34,3.10371186]
[1767347639928,7.73004273,129.37,129.35,3.10371186]
[1767347640130,0.6774524,129.36,129.34,3.10371186]
[1767347640328,7.73004273,129.37,129.32,7.73267685]
[1767347640329,0.6774524,129.37,129.32,0.19927608]
[1767347640638,0.6774524,129.37,129.34,3.10371186]
[1767347640818,0.6774524,129.37,129.35,3.10371186]
[1767347641215,0.6774524,129.37,129.32,68.93244197]
[1767347641440,0.6774524,129.37,129.34,3.10371186]
[1767347641624,8.40741124,129.37,129.34,3.10371186]
[1767347642124,8.40741124,129.37,129.32,61.39927608]
[1767347642317,8.40741124,129.37,129.34,3.10371186]
[1767347642516,5.78157226,129.36,129.34,3.10371186]
[1767347642733,5.58229618,129.35,129.34,3.10371186]
[1767347642931,0.6774524,129.37,129.34,3.10371186]
[1767347643242,0.6774524,129.37,129.35,3.10371186]
[1767347643617,0.6774524,129.37,129.35,4.83e-06]
[1767347644137,0.6774524,129.37,129.33,0.19927608]
[1767347644138,0.6774524,129.37,129.34,3.10371186]
[1767347644344,0.6774524,129.37,129.32,68.93217487]
[1767347644345,0.6774524,129.36,129.32,64.30371186]
[1767347644638,0.6774524,129.36,129.32,63.18632526]
[1767347645239,0.6774524,129.36,129.32,1.98632526]
[1767347645845,0.6774524,129.36,129.3,83.05364206]
[1767347646039,0.6774524,129.36,129.33,1.98632526]
[1767347647224,7.72998689,129.37,129.34,1.98632526]
[1767347647624,8.40743929,129.37,129.34,1.98632526]
[1767347647820,8.40743929,129.37,129.33,1.98632526]
[1767347648130,0.6774524,129.36,129.33,1.98632526]
[1767347648934,0.6774524,129.34,129.3,1.98632526]
[1767347649326,0.6774524,129.34,129.29,21.85425808]
[1767347649327,0.6774524,129.34,129.31,1.98632526]
[1767347649936,8.40848931,129.35,129.31,1.98632526]
[1767347650132,7.73103691,129.35,129.32,1.98632526]
[1767347650446,35.41074359,129.37,129.33,1.98632526]
[1767347650447,14.7774524,129.37,129.33,1.98632526]
[1767347650639,8.40626308,129.39,129.35,1.98632526]
[1767347650845,0.6774524,129.38,129.35,1.98632526]
[1767347651826,0.6774524,129.4,129.36,1.98632526]
[1767347652027,38.72631579,129.45,129.39,1.98632526]
[1767347652028,0.6774524,129.43,129.39,1.98632526]
[1767347652644,0.6774524,129.42,129.38,1.98632526]
[1767347652846,0.6774524,129.42,129.39,1.98632526]
[1767347654840,5.77617531,129.41,129.39,1.98632526]
[1767347655040,0.6774524,129.42,129.39,1.98632526]
[1767347655246,5.77646493,129.41,129.39,1.98632526]
[1767347655445,0.6774524,129.42,129.39,1.98632526]
[1767347655648,5.77441092,129.41,129.39,1.98632526]
[1767347655840,0.6774524,129.42,129.39,1.98632526]
[1767347656044,5.77441092,129.41,129.4,1.98632526]
[1767347656361,0.6774524,129.42,129.39,1.98632526]
[1767347656652,0.6774524,129.42,129.38,21.84916051]
[1767347656856,0.6774524,129.42,129.39,1.98632526]
[1767347657043,0.6774524,129.42,129.38,9.71548577]
[1767347657247,0.6774524,129.39,129.34,1.98632526]
[1767347657438,0.6774524,129.38,129.34,16.10632526]
[1767347657750,0.6774524,129.38,129.34,1.98632526]
[1767347658154,0.6774524,129.38,129.34,9.71787184]
[1767347658551,0.6774524,129.38,129.35,1.98632526]
[1767347659641,0.6774524,129.38,129.36,1.98632526]
[1767347659953,0.6774524,129.39,129.36,1.98632526]
[1767347660257,2.66377766,129.38,129.33,68.93180006]
[1767347660552,6.44965018,129.38,129.34,1.98632526]
[1767347660855,6.44965018,129.37,129.33,70.91812532]
[1767347661047,6.44965018,129.37,129.33,75.32]
[1767347661048,0.6774524,129.37,129.33,75.32]
[1767347661353,5.7733188,129.36,129.33,61.2]
[1767347661544,2.66377766,129.37,129.32,23.83886585]
[1767347661746,0.6774524,129.37,129.33,9.71837452]
[1767347661934,1.98632526,129.38,129.33,9.71837452]
[1767347661935,1.98632526,129.38,129.33,8.71837452]
[1767347662135,5.77344565,129.37,129.33,8.71837452]
[1767347662347,10.39296089,129.38,129.33,8.71837452]